bitfinex-derivatives/quotes_BTCF0:USTF0_20251219
["timestamp","ask_amount","ask_price","bid_price","bid_amount"]
[1766116360716,0.14748187,87290.0,87275.0,0.0058]
[1766116360923,0.14748,87288.0,87272.0,0.00309187]
[1766116361821,0.1589438,87288.0,87272.0,0.00309187]
[1766116362419,0.14748,87288.0,87272.0,0.00309187]
[1766116363123,0.14105,87284.0,87258.0,0.0114675]
[1766116363313,0.14105,87282.0,87259.0,0.00352]
[1766116363518,0.1525145,87282.0,87260.0,0.0114673]
[1766116363722,0.14105,87282.0,87263.0,0.0114669]
[1766116364126,0.14105,87282.0,87264.0,0.00017187]
[1766116365729,0.14105,87275.0,87259.0,0.00352]
[1766116365932,0.0058,87274.0,87259.0,0.00352]
[1766116366232,0.14685,87274.0,87259.0,0.00352]
[1766116367122,0.14685,87274.0,87260.0,0.0114673]
[1766116367518,0.14105,87274.0,87262.0,0.0114671]
[1766116368329,0.14105,87274.0,87259.0,0.0149875]
[1766116368632,0.0058,87275.0,87266.0,0.0114666]
[1766116368828,0.14105,87288.0,87271.0,0.0114659]
[1766116369034,0.0058,87287.0,87271.0,0.0114659]
[1766116369419,0.14105,87288.0,87271.0,0.0114659]
[1766116369623,0.0058,87287.0,87275.0,0.0114653]
[1766116370434,0.14105,87282.0,87265.0,0.0114666]
[1766116370729,0.14105,87282.0,87258.0,0.00017187]
[1766116370730,0.0058,87281.0,87275.0,0.0114653]
[1766116371029,0.0058,87286.0,87280.0,0.0114648]
[1766116371224,0.0058,87288.0,87280.0,0.0114648]
[1766116371426,0.06174187,87307.0,87274.0,0.00017187]
[1766116371427,0.0114618,87303.0,87285.0,0.011464]
[1766116371626,0.0058,87297.0,87281.0,0.0114645]
[1766116372021,0.14105,87293.0,87276.0,0.0058]
[1766116372226,0.14105,87291.0,87277.0,0.0114652]
[1766116373323,0.0058,87292.0,87283.0,0.0114643]
[1766116373523,0.0058,87292.0,87276.0,0.0058]
[1766116373524,0.0058,87292.0,87285.0,0.011464]
[1766116373724,0.0058,87292.0,87281.0,0.0114645]
[1766116373939,0.0058,87292.0,87278.0,0.011465]
[1766116374232,0.14685,87292.0,87278.0,0.011465]
[1766116376331,0.14105,87282.0,87264.0,0.0114668]
[1766116376531,0.14105,87282.0,87244.0,0.03004627]
[1766116376532,0.14105,87280.0,87261.0,0.0058]
[1766116376730,0.14105,87280.0,87261.0,0.00468]
[1766116377129,0.14105,87280.0,87268.0,0.0114663]
[1766116377330,0.14105,87280.0,87265.0,0.0114667]
[1766116377633,0.14105,87280.0,87261.0,0.00468]
[1766116377634,0.14105,87276.0,87264.0,0.0114668]
[1766116377824,0.14105,87274.0,87261.0,0.00468]
[1766116378736,0.14105,87274.0,87263.0,0.0114669]
[1766116379632,0.14105,87274.0,87261.0,0.00468]
[1766116379932,0.14105,87265.0,87249.0,0.0058]
[1766116380528,0.14105,87265.0,87253.0,0.0114682]
[1766116380938,0.0058,87267.0,87257.0,0.0114677]
[1766116381138,0.0058,87267.0,87249.0,0.0058]
[1766116381738,0.0058,87267.0,87252.0,0.0114684]
[1766116382727,0.0058,87267.0,87254.0,0.0114681]
[1766116382931,0.0058,87267.0,87249.0,0.0058]
[1766116382932,0.0058,87267.0,87257.0,0.0114677]
[1766116383339,0.0058,87267.0,87249.0,0.0058]
[1766116383340,0.14454,87262.0,87249.0,0.0058]
[1766116383530,0.15034,87262.0,87248.0,0.0114689]
[1766116383732,0.0114673,87261.0,87247.0,0.0058]
[1766116383930,0.14454,87259.0,87246.0,0.00568]
[1766116384527,0.00017187,87263.0,87246.0,0.00568]
[1766116384528,7e-08,87263.0,87260.0,0.0114674]
[1766116385835,7e-08,87263.0,87257.0,0.0114678]
[1766116386028,7e-08,87263.0,87247.0,0.011469]
[1766116386029,0.0114673,87261.0,87244.0,0.0114695]
[1766116386234,7e-08,87263.0,87245.0,0.0172693]
[1766116386235,0.14454,87260.0,87245.0,0.0172693]
[1766116386537,0.1560075,87260.0,87245.0,0.0058]
[1766116387132,7e-08,87263.0,87230.0,0.19727665]
[1766116387133,0.14454,87252.0,87240.0,0.0058]
[1766116387529,0.14454,87252.0,87241.0,0.0114699]
[1766116387733,0.14454,87252.0,87240.0,0.01727]
[1766116388532,0.0058,87259.0,87240.0,0.0058]
[1766116388731,0.14454,87260.0,87249.0,0.0114688]
[1766116388947,0.0058,87259.0,87248.0,0.0114689]
[1766116389337,0.0058,87259.0,87240.0,0.0058]
[1766116390143,7e-08,87263.0,87240.0,0.0058]
[1766116390344,0.15600707,87263.0,87240.0,0.0058]
[1766116390544,7e-08,87263.0,87240.0,0.0058]
[1766116390737,7e-08,87263.0,87255.0,0.011468]
[1766116390933,7e-08,87263.0,87242.0,0.0114697]
[1766116391130,7e-08,87263.0,87244.0,0.0114695]
[1766116391337,7e-08,87263.0,87255.0,0.0114679]
[1766116392342,7e-08,87263.0,87242.0,0.0114697]
[1766116392343,7e-08,87263.0,87258.0,0.0114675]
[1766116395145,7e-08,87263.0,87258.0,0.0114676]
[1766116395342,0.14079,87252.0,87221.0,0.03004627]
[1766116395546,0.14079,87252.0,87207.0,0.0114743]
[1766116395547,0.14079,87250.0,87237.0,0.0114704]
[1766116395843,0.14079,87250.0,87222.0,0.0058]
[1766116396045,0.14079,87248.0,87230.0,0.0114713]
[1766116396438,0.00011441,87247.0,87225.0,0.011472]
[1766116396639,0.0114697,87243.0,87225.0,0.011472]
[1766116396847,0.15237361,87247.0,87228.0,0.0114716]
[1766116397538,0.0114695,87245.0,87228.0,0.0114716]
[1766116398242,0.14090441,87247.0,87228.0,0.0114716]
[1766116398550,0.14090441,87247.0,87223.0,0.00564]
[1766116398747,0.14079,87242.0,87202.0,0.06155113]
[1766116399047,0.00017197,87231.0,87210.0,0.19727665]
[1766116399249,7e-08,87231.0,87224.0,0.0114721]
[1766116400943,7e-08,87231.0,87219.0,0.00017197]
[1766116401152,0.00013021,87230.0,87222.0,0.0114724]
[1766116401445,0.00013021,87230.0,87219.0,0.01164477]
[1766116401646,1e-08,87230.0,87219.0,0.00017197]
[1766116401951,1e-08,87230.0,87229.0,0.0114715]
[1766116405153,1e-08,87230.0,87226.0,0.0114718]
[1766116405342,1e-08,87230.0,87225.0,0.0058]
[1766116405542,1e-08,87230.0,87229.0,0.0114715]
[1766116405752,7e-08,87231.0,87229.0,0.0114715]
[1766116407649,7e-08,87231.0,87225.0,0.0058]
[1766116407650,0.14591,87259.0,87225.0,0.0058]
[1766116407855,0.0114685,87252.0,87225.0,0.0058]
[1766116408052,0.0114685,87252.0,87236.0,0.0114704]
[1766116408357,0.14591,87254.0,87238.0,0.0114702]
[1766116408546,0.1573784,87253.0,87238.0,0.0114702]
[1766116409749,0.0114686,87251.0,87237.0,0.00017197]
[1766116409947,0.0114689,87249.0,87237.0,0.00017197]
[1766116410549,0.1573789,87249.0,87237.0,0.00017197]
[1766116410744,0.1573789,87249.0,87228.0,0.0114716]
[1766116410745,0.1573795,87245.0,87228.0,0.0114716]
[1766116410947,0.1573795,87245.0,87229.0,0.0058]
[1766116411653,0.14591,87245.0,87229.0,0.0172714]
[1766116412047,0.14591,87245.0,87231.0,0.0114711]
[1766116414556,0.14591,87243.0,87229.0,0.0058]
[1766116415055,0.1573797,87243.0,87229.0,0.0058]
[1766116415256,0.14591,87243.0,87229.0,0.0058]
[1766116415457,0.14591,87243.0,87224.0,0.0058]
[1766116416056,0.14591,87243.0,87230.0,0.0114713]
[1766116417053,0.14591,87243.0,87226.0,0.0114718]
[1766116417257,0.14591,87240.0,87224.0,0.0058]
[1766116417457,0.14591,87238.0,87224.0,0.0058]
[1766116418269,0.14591,87238.0,87227.0,0.0114717]
[1766116420268,0.14591,87238.0,87224.0,0.0172721]
[1766116421070,0.00017197,87254.0,87224.0,0.0058]
[1766116421263,0.00017197,87254.0,87230.0,0.19727665]
[1766116421583,0.14591,87252.0,87205.0,0.03028126]
[1766116421758,0.14591,87229.0,87196.0,0.03028126]
[1766116421958,0.19724874,87230.0,87193.0,0.01157524]
[1766116421959,0.0114731,87217.0,87193.0,9.914e-05]
[1766116422163,0.14591,87209.0,87197.0,0.0114756]
[1766116422363,0.14591,87209.0,87197.0,0.0114757]
[1766116422958,0.14591,87209.0,87194.0,0.0058]
[1766116424172,0.14591,87209.0,87198.0,0.0114755]
[1766116424372,0.14591,87209.0,87201.0,0.0114751]
[1766116424971,0.00388,87215.0,87194.0,0.0058]
[1766116425163,0.14449,87214.0,87194.0,0.0058]
[1766116425563,0.14449,87214.0,87202.0,0.0114749]
[1766116425763,0.14449,87214.0,87202.0,0.0134349]
[1766116427664,0.14449,87214.0,87202.0,0.00196]
[1766116428375,0.14449,87214.0,87205.0,0.0114746]
[1766116428672,0.14449,87214.0,87201.0,0.0058]
[1766116429578,0.14449,87214.0,87200.0,0.00576]
[1766116429768,0.14449,87238.0,87201.0,0.0114751]
[1766116429970,0.14449,87236.0,87201.0,2.40968]
[1766116430367,0.14449,87236.0,87219.0,0.0114728]
[1766116430563,0.14449,87236.0,87193.0,9.914e-05]
[1766116430765,0.14449,87229.0,87206.0,0.00017197]
[1766116430979,0.14449,87219.0,87206.0,1.97e-06]
[1766116431175,0.14449,87211.0,87171.0,0.011479]
[1766116431465,0.14449,87211.0,87156.0,0.03028126]
[1766116431466,0.14449,87180.0,87156.0,0.03028126]
[1766116431670,0.14449,87180.0,87155.0,0.0114812]
[1766116431671,0.14449,87180.0,87157.0,0.0058]
[1766116431875,0.14449,87180.0,87171.0,0.0114791]
[1766116432072,0.00017208,87184.0,87174.0,0.0114786]
[1766116432374,0.00017208,87184.0,87174.0,0.00568]
[1766116432375,0.00011268,87183.0,87174.0,0.00568]
[1766116432774,0.00011268,87183.0,87177.0,0.0114783]
[1766116434378,0.00011268,87183.0,87174.0,0.00568]
[1766116434974,8e-08,87184.0,87174.0,0.08945]
[1766116435181,8e-08,87184.0,87181.0,0.0952477]
[1766116435377,8e-08,87184.0,87183.0,0.0114775]
[1766116436171,0.06174187,87230.0,87183.0,0.0951575]
[1766116436373,0.1559623,87223.0,87197.0,0.08368]
[1766116436676,0.06174187,87234.0,87198.0,0.08934]
[1766116436677,0.14449,87231.0,87198.0,0.08934]
[1766116436880,0.15029,87230.0,87212.0,0.0114736]
[1766116437385,0.15046197,87230.0,87215.0,0.0114733]
[1766116437582,0.15046197,87230.0,87218.0,0.0114729]
[1766116437778,7e-08,87230.0,87221.0,0.0114725]
[1766116439779,7e-08,87230.0,87218.0,0.0058]
[1766116439982,0.14449007,87230.0,87216.0,0.0058]
[1766116440284,0.14449007,87230.0,87212.0,0.00017197]
[1766116440285,0.14449,87229.0,87213.0,0.0058]
[1766116440474,0.19750738,87230.0,87212.0,1.97e-06]
[1766116440475,0.14449,87218.0,87212.0,1.97e-06]
[1766116440784,0.15029,87218.0,87212.0,1.97e-06]
[1766116440985,0.0058,87218.0,87212.0,1.97e-06]
[1766116441280,0.0058,87227.0,87212.0,0.01147557]
[1766116441580,0.0058,87227.0,87212.0,1.97e-06]
[1766116441581,0.14449,87226.0,87212.0,1.97e-06]
[1766116441776,0.0058,87227.0,87213.0,0.0114736]
[1766116441983,0.0058,87227.0,87212.0,1.97e-06]
[1766116441984,0.14449,87226.0,87212.0,1.97e-06]
[1766116442279,0.14449,87221.0,87204.0,0.00236]
[1766116442583,0.14449,87219.0,87204.0,0.00236]
[1766116442785,0.14449,87219.0,87201.0,0.00116]
[1766116443285,0.14466197,87219.0,87201.0,0.00133197]
[1766116445383,0.14466197,87219.0,87202.0,0.011475]
[1766116445585,0.14466197,87219.0,87201.0,0.00133197]
[1766116445586,0.14466197,87219.0,87204.0,0.0114747]
[1766116446079,0.14466197,87219.0,87207.0,0.0114743]
[1766116446281,0.14466197,87219.0,87203.0,0.0114748]
[1766116446473,0.14466197,87219.0,87194.0,0.0114761]
[1766116446474,0.15714,87216.0,87194.0,0.0114761]
[1766116446674,0.0058,87215.0,87198.0,0.0058]
[1766116447281,0.15714,87213.0,87198.0,0.0058]
[1766116447485,0.15714,87211.0,87192.0,0.0058]
[1766116447676,0.15714,87209.0,87192.0,0.0172763]
[1766116447983,0.0058,87210.0,87183.0,0.0757]
[1766116447984,0.15714,87205.0,87183.0,0.0114774]
[1766116448186,0.00017197,87219.0,87180.0,2.41]
[1766116448187,0.15714,87218.0,87184.0,0.0058]
[1766116448373,0.00017197,87210.0,87191.0,0.0114764]
[1766116448688,0.15714,87209.0,87192.0,0.00192]
[1766116449488,0.15714,87209.0,87193.0,0.0114762]
[1766116449689,0.15714,87209.0,87192.0,0.00192]
[1766116450086,0.15714,87209.0,87192.0,0.0133963]
[1766116450490,0.15714,87209.0,87195.0,0.0114759]
[1766116450783,0.0058,87208.0,87195.0,0.0114759]
[1766116451380,0.16294,87208.0,87195.0,0.0114759]
[1766116453098,0.16294,87208.0,87169.0,0.05166]
[1766116453099,0.15839,87204.0,87169.0,0.05166]
[1766116453285,0.15839,87202.0,87171.0,0.05166]
[1766116453589,0.15839,87200.0,87183.0,0.0114774]
[1766116453788,0.15839,87200.0,87183.0,0.0058]
[1766116454491,0.15839,87200.0,87186.0,0.011477]
[1766116454685,0.0058,87199.0,87183.0,0.0058]
[1766116454991,0.15839,87200.0,87192.0,0.0114763]
[1766116455896,0.15839,87200.0,87188.0,0.0114767]
[1766116456091,0.15839,87200.0,87185.0,0.0114773]
[1766116456395,0.16419,87200.0,87185.0,0.0114773]
[1766116456593,0.16419,87200.0,87183.0,0.0058]
[1766116456594,0.0058,87200.0,87183.0,0.06432]
[1766116456896,0.15856197,87210.0,87183.0,0.06432]
[1766116457087,0.0058,87209.0,87186.0,0.05852]
[1766116457487,0.16419,87209.0,87186.0,0.05852]
[1766116458891,0.16419,87209.0,87183.0,0.0058]
[1766116459098,0.15839,87207.0,87190.0,0.0114765]
[1766116459293,0.16419,87206.0,87192.0,0.0114763]
[1766116459598,0.16419,87206.0,87191.0,0.0058]
[1766116460490,0.1756646,87206.0,87191.0,0.0058]
[1766116460684,0.0114755,87199.0,87192.0,0.0058]
[1766116461001,0.0114755,87199.0,87160.0,0.06374628]
[1766116461002,0.15839,87187.0,87172.0,2.41028]
[1766116461300,0.15839,87187.0,87173.0,0.00484]
[1766116461684,0.0114771,87186.0,87173.0,0.00484]
[1766116461998,0.15839,87181.0,87155.0,0.06677]
[1766116462197,0.15839,87178.0,87156.0,0.0172811]
[1766116462395,0.15839,87178.0,87148.0,0.03024199]
[1766116462396,0.0114798,87166.0,87139.0,0.03024199]
[1766116462691,0.00017208,87161.0,87140.0,0.07316]
[1766116463397,0.00017208,87161.0,87153.0,0.0114814]
[1766116463597,0.00017208,87161.0,87154.0,0.0058]
[1766116464200,0.00017208,87161.0,87155.0,0.0058]
[1766116464396,0.00017208,87161.0,87142.0,0.0114829]
[1766116464607,0.0114816,87153.0,87138.0,0.00229522]
[1766116464901,0.1698716,87153.0,87139.0,0.0058]
[1766116465096,0.15839,87153.0,87139.0,0.0058]
[1766116465291,0.15839,87146.0,87131.0,0.0058]
[1766116465693,0.0114826,87145.0,87131.0,0.0058]
[1766116465892,0.15839,87146.0,87131.0,0.0058]
[1766116466201,0.15839,87144.0,87131.0,0.0058]
[1766116468204,0.15839,87144.0,87132.0,0.0058]
[1766116469407,8e-08,87147.0,87143.0,0.0114828]
[1766116469700,8e-08,87147.0,87144.0,0.0058]
[1766116470405,8e-08,87147.0,87145.0,0.0058]
[1766116470593,8e-08,87147.0,87137.0,0.00017208]
[1766116470594,8e-08,87147.0,87146.0,0.0058]
[1766116471294,0.15839,87140.0,87137.0,2.08e-06]
[1766116471488,0.15839,87140.0,87100.0,0.30440341]
[1766116471489,0.169875,87127.0,87099.0,2.41112]
[1766116471697,0.15839,87127.0,87113.0,0.0114867]
[1766116471888,0.15839,87127.0,87114.0,0.0058]
[1766116472092,0.15839,87127.0,87115.0,0.0171664]
[1766116472299,0.16419,87133.0,87115.0,0.0171664]
[1766116472500,0.16436218,87133.0,87115.0,0.0171664]
[1766116472698,0.17584638,87133.0,87115.0,0.00568]
[1766116473302,0.15839,87129.0,87116.0,0.00424]
[1766116473694,0.00597218,87133.0,87116.0,0.00424]
[1766116473695,0.00017218,87133.0,87117.0,0.0114862]
[1766116474097,0.00017218,87133.0,87116.0,0.07301]
[1766116474302,0.00017218,87133.0,87123.0,0.0114854]
[1766116474504,0.00017218,87133.0,87124.0,0.0058]
[1766116475503,0.15839,87161.0,87132.0,0.06979]
[1766116475705,0.15839,87161.0,87140.0,0.28964243]
[1766116476011,0.00229417,87178.0,87142.0,0.15047]
[1766116476191,0.00229417,87178.0,87141.0,0.017283]
[1766116476192,0.00229417,87178.0,87161.0,0.0114803]
[1766116476519,0.00246635,87178.0,87162.0,0.0058]
[1766116476699,0.00246635,87178.0,87166.0,0.0114798]
[1766116477307,0.00246635,87178.0,87162.0,0.0172802]
[1766116478200,0.00246635,87178.0,87163.0,0.0058]
[1766116479004,0.01394455,87178.0,87163.0,0.0058]
[1766116479205,0.01394455,87178.0,87161.0,0.00017218]
[1766116479398,0.01394455,87178.0,87164.0,0.0058]
[1766116479596,0.0114788,87174.0,87161.0,0.00017218]
[1766116479801,0.1698688,87174.0,87161.0,2.18e-06]
[1766116480301,0.1698688,87174.0,87162.0,0.0058]
[1766116480494,0.1698688,87174.0,87161.0,2.18e-06]
[1766116480495,0.00246635,87178.0,87163.0,0.0058]
[1766116480700,5e-08,87178.0,87163.0,0.0058]
[1766116480899,5e-08,87178.0,87170.0,0.0114792]
[1766116481101,5e-08,87178.0,87171.0,0.0058]
[1766116481407,5e-08,87178.0,87172.0,0.017279]
[1766116482404,5e-08,87178.0,87172.0,0.0058]
[1766116483898,5e-08,87178.0,87173.0,0.0058]
[1766116484106,5e-08,87178.0,87165.0,0.0114798]
[1766116484309,5e-08,87178.0,87166.0,0.0058]
[1766116484506,5e-08,87178.0,87167.0,0.0114796]
[1766116484811,5e-08,87178.0,87169.0,0.0114793]
[1766116485011,5e-08,87178.0,87168.0,0.0058]
[1766116485810,5e-08,87178.0,87163.0,0.0114801]
[1766116486011,5e-08,87178.0,87165.0,0.15145]
[1766116486211,5e-08,87178.0,87170.0,0.0114791]
[1766116486410,5e-08,87178.0,87171.0,0.0058]
[1766116487310,5e-08,87178.0,87164.0,0.01148]
[1766116487516,5e-08,87178.0,87165.0,0.0058]
[1766116487717,5e-08,87178.0,87161.0,0.01148258]
[1766116487910,5e-08,87178.0,87166.0,0.0058]
[1766116488212,0.15727,87177.0,87166.0,0.0058]
[1766116488814,0.15727,87177.0,87161.0,0.01148258]
[1766116488815,0.15727,87177.0,87167.0,0.0048]
[1766116489212,0.15727,87177.0,87161.0,2.18e-06]
[1766116489418,0.0114793,87170.0,87161.0,2.18e-06]
[1766116489610,0.0114793,87170.0,87160.0,2.18e-06]
[1766116489810,0.15727,87173.0,87160.0,2.18e-06]
[1766116490320,0.0114793,87170.0,87160.0,2.18e-06]
[1766116490913,5e-08,87178.0,87156.0,0.00017207]
[1766116490914,0.1687496,87168.0,87156.0,0.002]
[1766116491119,0.1687496,87168.0,87156.0,0.001]
[1766116491307,0.15727,87168.0,87156.0,0.00048]
[1766116491509,0.1687491,87172.0,87156.0,0.00048]
[1766116491713,0.15727,87158.0,87138.0,0.00229522]
[1766116491916,0.00017207,87157.0,87139.0,0.0058]
[1766116492108,0.00017207,87157.0,87140.0,0.0058]
[1766116492309,0.00017207,87157.0,87141.0,0.0114831]
[1766116492620,0.00017207,87157.0,87138.0,0.00229522]
[1766116492621,0.0114814,87154.0,87142.0,0.0058]
[1766116492920,0.15727,87153.0,87142.0,0.0058]
[1766116493115,0.0114816,87152.0,87140.0,0.0058]
[1766116493321,0.15727,87153.0,87140.0,0.0058]
[1766116493916,0.0114816,87152.0,87140.0,0.0058]
[1766116494223,0.1687515,87153.0,87140.0,0.0058]
[1766116494410,0.0114818,87151.0,87138.0,0.00629522]
[1766116494611,0.15727,87151.0,87138.0,0.00629522]
[1766116494819,0.1687525,87146.0,87125.0,0.0114851]
[1766116495011,0.15727,87142.0,87126.0,0.0058]
[1766116495212,0.0058,87146.0,87126.0,0.0058]
[1766116495213,0.15727,87141.0,87126.0,0.0058]
[1766116495412,0.0058,87146.0,87107.0,0.15145]
[1766116495413,0.0114852,87125.0,87107.0,0.15145]
[1766116495720,0.0114852,87125.0,87098.0,0.00229628]
[1766116495721,0.16892747,87125.0,87103.0,0.011488]
[1766116495907,0.16892747,87125.0,87104.0,0.0058]
[1766116495908,0.0114856,87122.0,87104.0,0.0058]
[1766116496113,0.1687556,87122.0,87104.0,0.0058]
[1766116496508,0.15727,87119.0,87104.0,0.0058]
[1766116496714,0.15727,87116.0,87104.0,0.0058]
[1766116496914,0.15727,87116.0,87098.0,2.41365628]
[1766116496915,0.15727,87114.0,87098.0,2.41365628]
[1766116497113,0.011487,87111.0,87091.0,0.00013094]
[1766116497323,0.1687573,87109.0,87092.0,0.0058]
[1766116497528,0.16307,87108.0,87092.0,0.0058]
[1766116497721,0.16307,87108.0,87091.0,0.00013094]
[1766116498018,0.16307,87108.0,87092.0,0.0114895]
[1766116498719,0.16307,87108.0,87091.0,0.00013094]
[1766116498914,0.16307,87108.0,87091.0,9.4e-07]
[1766116499822,0.15727,87106.0,87076.0,0.15145]
[1766116500012,0.00017217,87100.0,87077.0,0.0058]
[1766116500215,0.0058,87099.0,87077.0,0.15725]
[1766116500621,7e-08,87100.0,87077.0,0.15725]
[1766116500823,7e-08,87100.0,87080.0,0.15145]
[1766116501227,7e-08,87100.0,87077.0,0.0058]
[1766116501228,0.16307,87099.0,87077.0,0.0058]
[1766116501427,0.0058,87099.0,87082.0,0.15145]
[1766116501626,0.0058,87098.0,87082.0,0.00017217]
[1766116501828,0.16307,87098.0,87078.0,0.0114913]
[1766116502023,0.15727,87092.0,87059.0,0.01152261]
[1766116502323,0.15727,87081.0,87059.0,0.01152261]
[1766116502526,0.15727,87079.0,87059.0,0.01152261]
[1766116502726,0.15727,87079.0,87058.0,0.00229733]
[1766116502919,0.1524,87076.0,87058.0,0.00229733]
[1766116503120,4e-08,87077.0,87058.0,0.15809733]
[1766116503321,4e-08,87077.0,87068.0,0.1558]
[1766116503522,4e-08,87077.0,87063.0,0.0114933]
[1766116503722,4e-08,87077.0,87064.0,0.0058]
[1766116503923,0.15240004,87077.0,87059.0,0.0052]
[1766116504123,0.15240004,87077.0,87058.0,0.00229733]
[1766116504330,0.15240004,87077.0,87070.0,0.0114924]
[1766116504331,4e-08,87077.0,87070.0,0.0114924]
[1766116504524,4e-08,87077.0,87069.0,0.15828]
[1766116504723,4e-08,87077.0,87070.0,0.1558]
[1766116504924,4e-08,87077.0,87073.0,0.1672919]
[1766116505119,0.1524,87105.0,87082.0,0.0114908]
[1766116505431,0.1582,87104.0,87082.0,0.0114908]
[1766116505630,0.1582,87104.0,87081.0,0.0058]
[1766116505631,0.1524,87102.0,87081.0,0.0058]
[1766116506028,0.15257228,87100.0,87083.0,0.00017228]
[1766116506230,0.1524,87094.0,87074.0,0.003]
[1766116506427,0.1524,87092.0,87074.0,0.003]
[1766116506730,0.1638896,87092.0,87070.0,0.0058]
[1766116506933,0.1524,87088.0,87070.0,0.0058]
[1766116507134,0.1524,87084.0,87066.0,0.0058]
[1766116507336,0.1524,87084.0,87066.0,0.0172929]
[1766116507634,0.1524,87084.0,87066.0,0.0058]
[1766116508838,0.0058,87087.0,87067.0,0.0114928]
[1766116509026,0.0114904,87086.0,87066.0,0.0058]
[1766116509227,0.1638904,87086.0,87066.0,0.0058]
[1766116509625,0.1524,87086.0,87066.0,0.017293]
[1766116509823,0.1524,87086.0,87069.0,0.0114926]
[1766116510039,0.1524,87086.0,87066.0,0.0058]
[1766116510639,0.0058,87085.0,87070.0,0.0114924]
[1766116510942,0.0058,87084.0,87070.0,0.0114924]
[1766116511130,0.0058,87084.0,87067.0,0.1558]
[1766116511436,0.0058,87084.0,87067.0,0.1672928]
[1766116511625,0.0058,87084.0,87071.0,0.0114923]
[1766116511826,0.0058,87083.0,87067.0,0.1558]
[1766116512038,0.00017228,87100.0,87071.0,0.1558]
[1766116512435,0.0058,87099.0,87079.0,0.0114912]
[1766116512635,0.0058,87099.0,87080.0,0.1616]
[1766116512935,0.0058,87099.0,87080.0,0.0058]
[1766116513333,0.15768,87098.0,87080.0,0.0058]
[1766116514233,0.0114893,87094.0,87080.0,0.0058]
[1766116514530,0.1691693,87094.0,87079.0,0.0058]
[1766116514736,0.15768,87091.0,87074.0,0.0048]
[1766116515042,0.0058,87090.0,87074.0,0.0048]
[1766116515543,0.0058,87090.0,87076.0,0.0114915]
[1766116515839,0.0058,87090.0,87074.0,0.16588]
[1766116516136,0.06177258,87121.0,87074.0,0.16588]
[1766116516137,0.15768,87117.0,87090.0,0.16108]
[1766116516325,0.0058,87116.0,87097.0,0.0114888]
[1766116516528,0.0114869,87112.0,87096.0,0.0058]
[1766116516738,2.41328,87127.0,87096.0,0.0058]
[1766116516739,0.0114872,87110.0,87096.0,0.0058]
[1766116516943,0.16348,87111.0,87096.0,0.0058]
[1766116517536,0.0058,87110.0,87096.0,0.0058]
[1766116518736,0.0114873,87109.0,87096.0,0.0058]
[1766116518937,0.0058,87110.0,87096.0,0.0058]
[1766116519138,0.0058,87110.0,87096.0,0.0172889]
[1766116519339,0.0058,87110.0,87096.0,0.0058]
[1766116519536,0.00017228,87112.0,87096.0,0.16688]
[1766116519737,2.28e-06,87112.0,87107.0,0.0114874]
[1766116520038,2.28e-06,87112.0,87100.0,0.3590797]
[1766116520039,2.28e-06,87112.0,87100.0,0.370568]
[1766116520240,2.28e-06,87112.0,87105.0,0.0114877]
[1766116520444,2.28e-06,87112.0,87106.0,0.0058]
[1766116522441,2.28e-06,87112.0,87109.0,0.0114872]
[1766116522641,2.28e-06,87112.0,87109.0,0.1725672]
[1766116522836,0.0114837,87137.0,87109.0,0.16108]
[1766116523038,0.0114839,87135.0,87114.0,0.0114865]
[1766116523238,0.0114842,87133.0,87115.0,0.0058]
[1766116523442,0.00456,87136.0,87119.0,0.0114859]
[1766116523641,0.0114831,87142.0,87119.0,0.0114859]
[1766116523948,0.00017217,87137.0,87120.0,0.00017217]
[1766116524544,0.01165587,87137.0,87120.0,0.00017217]
[1766116526251,0.011484,87135.0,87121.0,0.003]
[1766116526844,0.00017217,87137.0,87121.0,0.003]
[1766116527043,0.0114816,87152.0,87129.0,0.0114846]
[1766116527242,0.0058,87151.0,87130.0,0.0058]
[1766116527742,0.16348,87151.0,87130.0,0.0058]
[1766116528142,0.15785217,87149.0,87130.0,0.0058]
[1766116528342,0.0114826,87145.0,87130.0,0.0058]
[1766116528543,0.0114822,87148.0,87130.0,0.0058]
[1766116529351,0.15785217,87149.0,87130.0,0.0058]
[1766116530138,0.15768,87142.0,87130.0,0.0058]
[1766116530939,0.00017217,87149.0,87120.0,0.00501217]
[1766116530940,0.15768,87133.0,87120.0,0.00501217]
[1766116531139,0.0114831,87141.0,87126.0,0.16108]
[1766116531441,0.00017217,87149.0,87128.0,0.16108]
[1766116531648,0.00017217,87149.0,87134.0,0.0114839]
[1766116531849,0.00017217,87149.0,87136.0,0.0114836]
[1766116532248,0.0058,87148.0,87136.0,0.0114836]
[1766116532550,0.0058,87148.0,87133.0,0.0114841]
[1766116532752,0.0114823,87147.0,87132.0,0.0114842]
[1766116532954,0.0172822,87148.0,87129.0,0.0058]
[1766116533447,0.15768,87147.0,87129.0,0.0058]
[1766116534243,0.15768,87133.0,87120.0,0.00017217]
[1766116534548,0.15768,87133.0,87120.0,0.01745797]
[1766116534749,0.15768,87133.0,87120.0,0.00017217]
[1766116535251,0.15768,87129.0,87110.0,0.0114871]
[1766116535551,0.15768,87129.0,87101.0,0.16108]
[1766116535552,0.011486,87119.0,87105.0,0.0058]
[1766116535753,0.15768,87121.0,87096.0,0.011489]
[1766116535952,0.15768,87114.0,87089.0,2.41252]
[1766116536142,0.0058,87113.0,87096.0,0.0114889]
[1766116536338,0.00017217,87110.0,87093.0,0.00017217]
[1766116536649,0.00017217,87110.0,87094.0,0.0114892]
[1766116537146,0.00017217,87110.0,87093.0,0.00017217]
[1766116538044,0.00017217,87110.0,87094.0,0.0114892]
[1766116538453,0.00017217,87110.0,87093.0,0.00017217]
[1766116539138,0.0114873,87109.0,87093.0,0.00017217]
[1766116539348,0.15768,87102.0,87093.0,2.17e-06]
[1766116539852,0.15768,87102.0,87098.0,0.00229628]
[1766116540052,0.15768,87102.0,87093.0,2.17e-06]
[1766116540053,0.15768,87094.0,87093.0,2.17e-06]
[1766116540348,0.15768,87089.0,87073.0,0.00032]
[1766116540553,0.15768,87089.0,87074.0,0.0114919]
[1766116540752,0.15768,87089.0,87073.0,0.00032]
[1766116541556,0.0114901,87088.0,87073.0,0.00032]